[Event "34th Pula Open 2022"]
[Site "Pula"]
[Date "2022.06.20"]
[Round "3.5"]
[White "Maier, Christian"]
[Black "Balinski, Damian"]
[Result "1/2-1/2"]
[ECO "A88"]
[WhiteElo "2299"]
[BlackElo "2184"]
[Annotator "TA"]
[PlyCount "53"]
[EventDate "2022.06.18"]
[EventType "swiss"]
[EventCountry "CRO"]
[SourceTitle "playchess.com"]
[Source "ChessBase"]
[SourceQuality "1"]
[TimeControl "5400+30"]

{[%evp 14,53,25,22,39,33,32,0,0,0,0,-2,0,0,21,25,10,25,46,-6,0,0,0,0,14,20,7,0,0,0,0,0,0,0,0,0,0,0,0,0,0,0]} 1. d4 {[%emt 0:01:36]} f5 {[%emt 0:00:05]} 2. c4 {[%emt 0:00:31]} Nf6 {[%emt 0:00:10]} 3. Nc3 {[%emt 0:00:07]} d6 {[%emt 0:00:05]} 4. Nf3 {[%emt 0:01:50]} g6 {[%emt 0:00:24]} 5. g3 {[%emt 0:06:21]} Bg7 {[%emt 0:00:02]} 6. Bg2 {[%emt 0:00:07]} O-O {[%emt 0:00:02]} 7. O-O {[%emt 0:00:51]} c6 $1 {[%emt 0:00:03][%mdl 4] now scores much better than the old 7...Qe8.} 8. b4 {[%emt 0:03:38]} e5 {[%emt 0:02:15] A88: Dutch Defence: Leningrad System: 5 Nf3 0-0 6 0-0 d6 7 Nc3 c6.} 9. dxe5 {[%emt 0:00:30]} dxe5 {[%emt 0:00:03]} 10. Qb3 {[%emt 0:05:55]} ({Of course not} 10. Nxe5 Qxd1 11. Nxd1 (11. Rxd1 Ne4 $17) 11... Ng4 $15) ({Much worse is} 10. Qxd8 Rxd8 11. Nxe5 Re8 $11) (10. e4 $5) 10... e4 {[%emt 0:00:52]} 11. Rd1 {[%emt 0:00:38]} Qe7 {[%emt 0:01:41]} 12. Nd4 {[%emt 0:00:10]} Ng4 {[%emt 0:27:43]} 13. c5+ {[%emt 0:07:17]} Kh8 {[%emt 0:09:42] [#]} 14. Bf4 $146 {[%emt 0:01:12] Hoping for Bd6.} ({Predecessor:} 14. h3 Ne5 15. f4 exf3 16. exf3 Rd8 17. Bb2 Na6 18. f4 Rxd4 19. Rxd4 Nf3+ 20. Bxf3 Bxd4+ {1-0 (42) Aleksandrov,A (2606)-Dovliatov,S (2327) Minsk 2000}) 14... Ne5 {[%emt 0:01:15]} 15. Rac1 {[%emt 0:09:05]} Na6 {[%emt 0:03:42][%cal Bb8a6,Ba6c7,Bc7e6][%mdl 32]} 16. h4 {[%emt 0:12:40]} (16. b5 $1 $14 Nb8 17. h4) 16... Nc7 $11 {[%emt 0:05:14] The position is equal.} 17. e3 {[%emt 0:11:26]} Ne6 {[%emt 0:03:00]} 18. Nce2 {[%emt 0:02:22]} h6 {[%emt 0:16:09]} 19. Bxe5 {[%emt 0:01:18]} (19. b5 {with more complications.} Nxc5 20. Qa3 Ned3 21. bxc6 Rf7 22. Rc3) 19... Bxe5 {[%emt 0:01:45]} 20. Nf4 {[%emt 0:00:05]} Nxf4 {[%emt 0:00:23]} 21. exf4 {[%emt 0:00:32]} Bf6 {[%emt 0:00:51]} 22. Rd2 {[%emt 0:01:38]} Bd7 {[%emt 0:00:54]} 23. Rcd1 {[%emt 0:00:06]} Rad8 {[%emt 0:02:08]} 24. Bf1 {[%emt 0:08:00]} a6 {[%emt 0:02:35]} 25. Bc4 {[%emt 0:00:32]} Bc8 {[%emt 0:01:09]} 26. Kg2 {[%emt 0:06:00][%cal Oh4h5]} h5 {[%emt 0:00:04]} 27. Qe3 {[%emt 0:02:56] Weighted Error Value: White=0.05 (flawless) /Black=0.04 (flawless)} 1/2-1/2

[Event "34th Pula Open 2022"]
[Site "Pula"]
[Date "2022.06.20"]
[Round "3.6"]
[White "Rohacek, Miroslav"]
[Black "Rubil, Marko"]
[Result "1-0"]
[ECO "C45"]
[WhiteElo "2188"]
[BlackElo "2272"]
[Annotator "TA"]
[PlyCount "83"]
[EventDate "2022.06.18"]
[EventType "swiss"]
[EventCountry "CRO"]
[SourceTitle "playchess.com"]
[Source "ChessBase"]
[SourceQuality "1"]
[TimeControl "5400+30"]

{[%evp 11,83,0,32,18,19,0,0,3,23,27,50,15,19,3,31,32,32,26,29,25,35,31,30,28,232,224,241,224,438,433,411,424,525,516,853,860,1012,996,1029,1020,953,949,917,630,635,646,642,635,600,565,577,568,560,541,533,489,795,797,1051,1041,5506,878,789,0,851,789,5694,5608,29997,29997,29997,29998,29998,29999]} 1. e4 {[%emt 0:00:05]} e5 {[%emt 0:01:34]} 2. Nf3 {[%emt 0:00:09]} Nc6 {[%emt 0:00:06]} 3. d4 {[%emt 0:00:20]} exd4 {[%emt 0:00:05]} 4. Nxd4 {[%emt 0:00:09]} Bc5 {[%emt 0:00:04]} 5. Nb3 {[%emt 0:00:13]} Bb6 {[%emt 0:00:02]} 6. Nc3 {[%emt 0:00:28]} Nge7 {[%emt 0:00:38]} 7. Bg5 {[%emt 0:05:30] C45: Scotch Game.} f6 {[%emt 0:00:45] 7...h6 is the fancy move.} 8. Bh4 {[%emt 0:01:53]} O-O {[%emt 0:03:13]} 9. Qd2 {[%emt 0:07:16] The position is equal.} d6 {[%emt 0:24:21]} 10. O-O-O {[%emt 0:04:38]} a5 {[%emt 0:05:41]} 11. a4 {[%emt 0:00:37] [#]} Qe8 $146 {[%emt 0:00:22]} ({Predecessor:} 11... Be6 12. f4 Bxb3 13. cxb3 Nd4 14. Bc4+ Kh8 15. Bf2 Nec6 16. Nb5 Nxb5 17. Bxb6 Nba7 {½-½ (41) Mastrovasilis,D (2594)-Georgiev,V (2479) Batumi 2018}) 12. f3 {[%emt 0:07:55]} f5 {[%emt 0:22:51]} 13. Bc4+ {[%emt 0:10:25]} Kh8 {[%emt 0:00:08]} 14. Rhe1 {[%emt 0:00:12] [#] aiming for exf5.} f4 {[%emt 0:16:04]} 15. Bf2 {[%emt 0:07:59] Prevents Be3.} Bxf2 {[%emt 0:00:06]} (15... Ne5 $2 16. Bb5 Bd7 17. Bxb6 Bxb5 18. Nxb5 $18 (18. axb5 Nc4 $14) (18. Bxc7 Bxa4 19. Qxd6 Nc4 $18)) 16. Qxf2 {[%emt 0:00:08]} Ne5 {[%emt 0:00:01]} 17. Bf1 {[%emt 0:04:15]} Qh5 $2 {[%emt 0:00:13] White leaves nothing to chance now.} (17... N7c6 $11 {and Black is okay.}) 18. Nb5 $18 {[%emt 0:01:38]} Bd7 {[%emt 0:10:03]} 19. Nxc7 {[%emt 0:01:35]} Bxa4 $2 {[%emt 0:00:01]} (19... Rac8 $2 20. Nb5) (19... Rab8 20. Rxd6 Bxa4) 20. Nxa8 {[%emt 0:00:37]} Rxa8 {[%emt 0:00:38]} 21. Rxd6 {[%emt 0:01:32]} Rc8 {[%emt 0:00:40]} 22. Qb6 {[%emt 0:01:07]} N5c6 {[%emt 0:05:03]} (22... Nf7 $142 23. Rd2 Be8 24. Nxa5 h6 25. Nxb7 Ra8) 23. Nc5 {[%emt 0:07:49]} Qh4 {[%emt 0:07:03]} 24. Red1 {[%emt 0:01:15]} Bxc2 {[%emt 0:02:14]} 25. Kxc2 {[%emt 0:06:10]} Qf2+ {[%emt 0:00:28]} 26. Kb3 {[%emt 0:00:57][%cal Od6d8]} h5 {[%emt 0:00:33]} 27. Rd8+ {[%emt 0:03:29]} Nxd8 {[%emt 0:00:22]} 28. Rxd8+ {[%emt 0:00:09]} Kh7 {[%emt 0:00:03]} 29. Rxc8 {[%emt 0:00:50]} Nxc8 {[%emt 0:00:40]} 30. Qc7 {[%emt 0:00:16] [#] Black must now prevent Bd3.} Qxf1 {[%emt 0:00:51]} 31. Qxc8 {[%emt 0:00:23] Active counter play!} Qb5+ {[%emt 0:00:32]} 32. Kc3 {[%emt 0:00:49]} ({Weaker is} 32. Ka2 Qc4+ 33. Kb1 Qf1+ 34. Kc2 Qxg2+ 35. Kb3 Qxf3+ 36. Ka2 Qf1 37. Qf5+ (37. Nxb7 Qb5 $16) (37. Qxb7 $2 Qc4+ 38. Qb3 Qxc5 $19) 37... Kh6 $18) 32... Qb4+ {[%emt 0:00:19]} 33. Kd3 {[%emt 0:00:02]} b5 {[%emt 0:00:28]} (33... Qb5+ $142 34. Kd4 Qxb2+ 35. Kd5 Qd2+ 36. Ke5 Qxg2 37. Qf5+ Kg8) 34. Qf5+ {[%emt 0:00:24]} Kg8 {[%emt 0:00:25]} 35. Qd5+ {[%emt 0:00:17]} Kf8 {[%emt 0:00:20]} 36. Qd6+ {[%emt 0:01:38]} Kg8 {[%emt 0:00:10]} 37. Qd5+ {[%emt 0:00:45]} Kf8 $1 {[%emt 0:00:01]} 38. Nd7+ {[%emt 0:01:34]} Ke7 {[%emt 0:00:20]} 39. Ne5 {[%emt 0:00:11] Threatening mate with Ng6+.} Qe1 {[%emt 0:01:58]} 40. Qd7+ {[%emt 0:00:07] White mates.} Kf6 {[%emt 0:00:07]} 41. Qd6+ {[%emt 0:00:05]} Kg5 {[%emt 0:00:26]} 42. Nf7+ {[%emt 0:00:01] Weighted Error Value: White=0.23 (precise) /Black=0.52} 1-0

[Event "34th Pula Open 2022"]
[Site "Pula"]
[Date "2022.06.20"]
[Round "3.7"]
[White "Hadzovic, Amir"]
[Black "Ragger, Anna-Christina"]
[Result "1/2-1/2"]
[ECO "B20"]
[WhiteElo "2270"]
[BlackElo "2141"]
[Annotator "TA"]
[PlyCount "60"]
[EventDate "2022.06.18"]
[EventType "swiss"]
[EventCountry "CRO"]
[SourceTitle "playchess.com"]
[Source "ChessBase"]
[SourceQuality "1"]
[TimeControl "5400+30"]

{[%evp 9,60,-19,-18,-21,0,0,0,-36,-24,-32,-18,-28,-14,-42,54,16,128,124,112,112,137,139,147,94,91,89,102,83,87,82,91,79,83,83,83,75,76,53,53,0,0,0,0,0,0,0,0,0,12,19,19,19,22]} 1. e4 {[%emt 0:00:04]} c5 {[%emt 0:00:04]} 2. Nc3 {[%emt 0:03:20]} e6 {[%emt 0:00:10]} 3. Bc4 {[%emt 0:01:07]} a6 {[%emt 0:01:29]} 4. a4 {[%emt 0:01:08]} b6 {[%emt 0:00:32]} 5. d3 {[%emt 0:00:36]} Bb7 {[%emt 0:00:52]} 6. Nf3 {[%emt 0:14:10] B20: Sicilian: Unusual White 2nd moves.} d5 {[%emt 0:04:16]} 7. exd5 {[%emt 0:00:43]} exd5 {[%emt 0:00:06]} 8. Qe2+ {[%emt 0:00:27]} Be7 $1 {[%emt 0:02:44]} 9. Ba2 {[%emt 0:00:15]} Nf6 {[%emt 0:06:53]} 10. O-O {[%emt 0:03:09]} O-O {[%emt 0:05:28] [#]} 11. Bg5 $146 {[%emt 0:00:35]} ({Predecessor:} 11. Bf4 Nc6 12. Rae1 Re8 13. Qd2 b5 14. axb5 axb5 15. Bb1 Qb6 16. Ne2 d4 17. Ng3 {0-1 (60) Tilenbaeva,B (1944)-Vasiliev,O (2293) Khanty-Mansiysk 2010}) 11... h6 {[%emt 0:01:48]} ({Black should play} 11... Re8 $15) 12. Rfe1 $36 {[%emt 0:02:46][%mdl 2048] White is pushing.} (12. Rae1 $5 {[%cal Re2e7]} Nc6 13. Bxf6 Bxf6 14. Nxd5 $14) 12... Bd6 {[%emt 0:10:27]} (12... Nc6 $11 {keeps the balance.} 13. Bxf6 Bxf6) 13. Bxf6 $16 {[%emt 0:01:51]} Qxf6 {[%emt 0:02:19]} 14. Bxd5 {[%emt 0:00:33]} Bxd5 {[%emt 0:00:50]} 15. Nxd5 {[%emt 0:00:08]} Qd8 {[%emt 0:00:25][%cal Od6h2]} 16. Ne7+ {[%emt 0:09:42]} (16. Qe4 $142) 16... Bxe7 {[%emt 0:05:42]} 17. Qxe7 {[%emt 0:00:34]} Nc6 {[%emt 0:00:08]} 18. Qe4 {[%emt 0:02:15] White is much more active. The black rooks are badly placed.} Nd4 {[%emt 0:04:58]} 19. Nxd4 {[%emt 0:01:37]} cxd4 {[%emt 0:00:16]} 20. Qb7 {[%emt 0:06:17]} Rc8 {[%emt 0:03:02]} 21. Re2 {[%emt 0:00:35]} a5 {[%emt 0:02:16]} 22. Rae1 {[%emt 0:01:59]} Qd6 {[%emt 0:01:09]} 23. g3 {[%emt 0:00:51]} Qb4 {[%emt 0:01:35][%csl LRa4,LRb2]} 24. Qd7 {[%emt 0:24:02]} (24. Re7 $14) 24... Qxb2 $11 {[%emt 0:08:57] The position is equal.} ({But not} 24... Rxc2 25. Re8 (25. Rxc2 Qxe1+ 26. Kg2 Qb1 $14) 25... Rc8 26. Rxc8 $16) 25. Re8 {[%emt 0:01:24]} Rcxe8 {[%emt 0:00:15]} 26. Rxe8 {[%emt 0:00:08]} Rxe8 {[%emt 0:00:46]} 27. Qxe8+ {[%emt 0:00:07]} Kh7 {[%emt 0:00:02]} 28. Qxf7 {[%emt 0:01:23] Strongly threatening Qc4.} Qxc2 {[%emt 0:00:56]} 29. Qf5+ {[%emt 0:00:12]} Kh8 {[%emt 0:00:27]} 30. Qb5 {[%emt 0:04:49]} Qe2 {[%emt 0:03:54] Blacks defense is rewarded with a draw.  Weighted Error Value: White=0.12 (very precise) /Black=0.16 (very precise)} 1/2-1/2

[Event "34th Pula Open 2022"]
[Site "Pula"]
[Date "2022.06.20"]
[Round "3.8"]
[White "Berke, Ana"]
[Black "Boucquet, Emile"]
[Result "1/2-1/2"]
[ECO "B51"]
[WhiteElo "2150"]
[BlackElo "2252"]
[Annotator "RC"]
[PlyCount "99"]
[EventDate "2022.06.18"]
[EventType "swiss"]
[EventCountry "CRO"]
[SourceTitle "playchess.com"]
[Source "ChessBase"]
[SourceQuality "1"]
[TimeControl "5400+30"]

1. e4 {[%emt 0:00:30]} c5 {[%emt 0:05:28]} 2. Nf3 {[%emt 0:00:10]} d6 {[%emt 0:01:12]} 3. Bb5+ {[%emt 0:00:07]} Nd7 {[%emt 0:00:02]} 4. O-O {[%emt 0:00:11]} a6 {[%emt 0:00:01]} 5. Bxd7+ {[%emt 0:00:10]} Bxd7 {[%emt 0:00:02]} 6. c3 {[%emt 0:00:09]} Nf6 {[%emt 0:01:29]} 7. Re1 {[%emt 0:00:03]} Bc6 {[%emt 0:09:45]} 8. d4 {[%emt 0:00:06]} cxd4 {[%emt 0:00:39]} 9. cxd4 {[%emt 0:00:06]} g6 {[%emt 0:06:40]} 10. d5 {[%emt 0:05:49]} Bd7 {[%emt 0:02:09]} 11. Nc3 {[%emt 0:06:59]} Bg7 {[%emt 0:02:25]} 12. a4 {[%emt 0:00:25]} O-O {[%emt 0:06:38]} 13. a5 {[%emt 0:02:50]} Bg4 {[%emt 0:07:19]} 14. h3 {[%emt 0:03:38]} Bxf3 {[%emt 0:00:09]} 15. Qxf3 {[%emt 0:00:03]} Nd7 {[%emt 0:00:11]} 16. Be3 {[%emt 0:02:49]} Rc8 {[%emt 0:06:45]} 17. Qd1 {[%emt 0:03:12]} Ne5 {[%emt 0:04:08]} 18. Bd4 {[%emt 0:02:33]} g5 {[%emt 0:09:46]} 19. Ra4 {[%emt 0:02:01]} e6 {[%emt 0:01:20]} 20. Kh1 {[%emt 0:04:50]} Qe7 {[%emt 0:05:03]} 21. Rf1 {[%emt 0:03:43]} Qf6 {[%emt 0:10:21]} 22. Qh5 {[%emt 0:04:03]} Qg6 {[%emt 0:05:41]} 23. Qxg6 {[%emt 0:02:02]} Nxg6 {[%emt 0:03:43]} 24. Bxg7 {[%emt 0:02:34]} Kxg7 {[%emt 0:00:01]} 25. g3 {[%emt 0:04:08]} Ne5 {[%emt 0:00:12]} 26. f4 {[%emt 0:03:29]} Nd3 {[%emt 0:03:01]} 27. fxg5 {[%emt 0:04:55]} Nxb2 {[%emt 0:00:03]} 28. Ra2 {[%emt 0:02:31]} Rxc3 {[%emt 0:03:20]} 29. Rxb2 {[%emt 0:03:12]} exd5 {[%emt 0:00:02]} 30. exd5 {[%emt 0:00:17]} Rxg3 {[%emt 0:00:02]} 31. Rf6 {[%emt 0:05:55]} Rxh3+ {[%emt 0:00:59]} 32. Kg2 {[%emt 0:01:11]} Ra3 {[%emt 0:00:42]} 33. Rxd6 {[%emt 0:01:53]} Rxa5 {[%emt 0:04:57]} 34. Rxb7 {[%emt 0:00:12]} Rc8 {[%emt 0:00:42]} 35. Ra7 {[%emt 0:10:24]} Rc3 {[%emt 0:02:24]} 36. Raxa6 {[%emt 0:01:32]} Rb5 {[%emt 0:00:26]} 37. Rab6 {[%emt 0:00:53]} Rbc5 {[%emt 0:00:02]} 38. Rdc6 {[%emt 0:03:39]} Rxc6 {[%emt 0:00:27]} 39. Rxc6 {[%emt 0:01:00]} Rd3 {[%emt 0:00:13]} 40. Rd6 {[%emt 0:01:04]} Kf8 {[%emt 0:00:06]} 41. Rh6 {[%emt 0:01:40]} Kg7 {[%emt 0:00:03]} 42. Rd6 {[%emt 0:00:15]} Kf8 {[%emt 0:00:04]} 43. Rh6 {[%emt 0:00:05]} Rxd5 {[%emt 0:00:04]} 44. Rxh7 {[%emt 0:00:06]} Rxg5+ {[%emt 0:00:03]} 45. Kf3 {[%emt 0:00:07]} Ke7 {[%emt 0:00:16]} 46. Kf4 {[%emt 0:00:12]} Rg1 {[%emt 0:00:05]} 47. Rh6 {[%emt 0:00:19]} Rf1+ {[%emt 0:00:04]} 48. Ke4 {[%emt 0:00:14]} f6 {[%emt 0:00:09]} 49. Rh5 {[%emt 0:01:08]} f5+ {[%emt 0:00:30]} 50. Rxf5 {[%emt 0:00:09]} 1/2-1/2

[Event "34th Pula Open 2022"]
[Site "Pula"]
[Date "2022.06.20"]
[Round "3.9"]
[White "Bochnicka, Vladimir"]
[Black "Terryn, Ezra"]
[Result "1-0"]
[ECO "B47"]
[WhiteElo "2267"]
[BlackElo "2132"]
[Annotator "TA"]
[PlyCount "95"]
[EventDate "2022.06.18"]
[EventType "swiss"]
[EventCountry "CRO"]
[SourceTitle "playchess.com"]
[Source "ChessBase"]
[SourceQuality "1"]
[TimeControl "5400+30"]

{[%evp 9,95,12,44,27,30,29,34,38,45,46,54,21,115,116,118,112,120,104,156,144,148,170,238,249,243,237,235,200,202,203,198,179,197,197,194,192,210,206,207,214,210,207,206,194,166,174,207,170,203,197,244,249,268,246,274,264,350,333,381,384,366,358,437,422,431,408,395,401,375,394,366,278,275,144,172,152,231,129,168,65,182,204,906,809,29987,29988,29988,29989]} 1. e4 {[%emt 0:00:04]} c5 {[%emt 0:00:05]} 2. Nf3 {[%emt 0:00:04]} e6 {[%emt 0:03:02]} 3. d4 {[%emt 0:00:06]} cxd4 {[%emt 0:00:07]} 4. Nxd4 {[%emt 0:00:03]} Nc6 {[%emt 0:00:13]} 5. Nc3 {[%emt 0:00:14]} Qc7 {[%emt 0:00:12]} 6. Qd3 {[%emt 0:00:12] B47: Sicilian: Taimanov: 5 Nc3 Qc7 6 f4, 6 g3 and 6 Be2.} a6 {[%emt 0:00:31]} 7. Nxc6 {[%emt 0:00:21]} (7. Be2 {is more complex.} Nf6 8. Bg5 Nxd4 9. Qxd4 Bc5 10. Qd3) 7... bxc6 {[%emt 0:04:37]} 8. Qg3 {[%emt 0:01:21] White is slightly better.} Qxg3 {[%emt 0:05:16]} 9. hxg3 {[%emt 0:00:05]} a5 {[%emt 0:05:06] [#]} 10. e5 $146 {[%emt 0:13:19]} ({Predecessor:} 10. Na4 Ba6 11. Bxa6 Rxa6 12. c4 Nf6 13. e5 Ng4 14. Bf4 f6 15. exf6 Nxf6 16. O-O-O {1-0 (55) Dolana,A (2368)-Doncea,V (2361) Bucharest 2019}) 10... f5 {[%emt 0:19:04]} (10... f6 $11) 11. Na4 $16 {[%emt 0:05:19]} Ne7 {[%emt 0:09:52]} 12. Bd2 {[%emt 0:07:12]} Ba6 {[%emt 0:12:04]} 13. O-O-O {[%emt 0:11:57]} Nc8 {[%emt 0:11:40]} (13... Bxf1 $142 14. Rdxf1 (14. Rhxf1 h5 $16) 14... Nc8) 14. Bxa6 {[%emt 0:04:12]} Rxa6 {[%emt 0:00:06]} 15. Be3 {[%emt 0:00:16][%cal Bd2e3,Be3f4,Bf4e5,Be5d4][%mdl 32] White is more active.} d5 {[%emt 0:05:22]} (15... Ra8 {was called for.} 16. Rd3 Rb8) 16. exd6 $18 {[%emt 0:00:47]} Bxd6 {[%emt 0:00:07]} 17. Rhe1 {[%emt 0:05:43]} e5 {[%emt 0:10:51]} 18. Bf4 {[%emt 0:08:56]} Kf7 {[%emt 0:03:14]} 19. Bxe5 {[%emt 0:00:00]} Re8 {[%emt 0:00:09]} 20. Bd4 {[%emt 0:01:45] Rxe8 is the strong threat.} Rxe1 {[%emt 0:06:18]} 21. Rxe1 {[%emt 0:00:07]} Ra8 {[%emt 0:00:42]} 22. Re3 {[%emt 0:04:45]} f4 {[%emt 0:01:07]} 23. Rf3 {[%emt 0:01:56]} g5 {[%emt 0:00:04]} 24. gxf4 {[%emt 0:01:34]} g4 {[%emt 0:00:04]} 25. Rc3 {[%emt 0:03:21]} Bxf4+ {[%emt 0:00:04]} 26. Kd1 {[%emt 0:00:17]} Ne7 {[%emt 0:00:23]} 27. Rc5 {[%emt 0:02:43]} Kg6 {[%emt 0:02:46]} ({Weaker is} 27... Rd8 28. c3 $16) 28. c3 {[%emt 0:03:58]} h5 {[%emt 0:00:32]} 29. g3 {[%emt 0:03:32]} Bc7 {[%emt 0:00:42]} (29... Bd6 {was worth a try.}) 30. Be5 {[%emt 0:01:47]} Rd8+ {[%emt 0:00:14]} 31. Ke2 {[%emt 0:01:03]} Bxe5 {[%emt 0:00:17]} 32. Rxe5 {[%emt 0:00:05][%mdl 4096] Endgame KRN-KRN} Rd7 {[%emt 0:00:59]} 33. Rxa5 {[%emt 0:04:31]} Nd5 {[%emt 0:00:22]} 34. Nc5 {[%emt 0:01:59]} Re7+ {[%emt 0:00:04]} 35. Kf1 {[%emt 0:01:03]} Rf7 {[%emt 0:00:45]} 36. Nd3 {[%emt 0:00:05]} Rf6 {[%emt 0:00:38]} 37. Kg2 {[%emt 0:00:23]} Rd6 {[%emt 0:00:47]} 38. Ne5+ {[%emt 0:00:54]} Kf6 {[%emt 0:00:08]} 39. Nc4 {[%emt 0:02:37]} Re6 {[%emt 0:00:03]} 40. Ra8 {[%emt 0:01:01]} Re4 {[%emt 0:00:31] [#]} 41. b3 {[%emt 0:02:23]} ({White has to play} 41. Ra4 $1 $18) 41... Nxc3 $16 {[%emt 0:00:22]} 42. a4 {[%emt 0:00:34]} Re1 {[%emt 0:01:08]} (42... Re2 $16 43. Ne3 Ke6) 43. a5 {[%emt 0:02:23]} (43. Rc8 $18) 43... Ne2 {[%emt 0:00:08]} 44. f4 {[%emt 0:01:14]} ({Better is} 44. a6 $18 Nd4 45. Nd2) 44... Nd4 {[%emt 0:00:40] [#]} (44... Nc1 $14) 45. a6 $1 $18 {[%emt 0:01:09]} Nf3 $2 {[%emt 0:00:33]} (45... Ra1 46. a7 Ra2+ 47. Kf1 Kg7) 46. a7 {[%emt 0:01:08] White threatens Rf8+ and mate.} h4 {[%emt 0:00:55]} 47. Rf8+ {[%emt 0:01:47]} Kg7 {[%emt 0:00:06]} 48. a8=Q {[%emt 0:00:53] Weighted Error Value: White=0.17 (very precise) /Black=0.41} 1-0

[Event "34th Pula Open 2022"]
[Site "Pula"]
[Date "2022.06.20"]
[Round "3.10"]
[White "Tonndorf, Matthias"]
[Black "De Vleeschauwer, Maarten"]
[Result "0-1"]
[ECO "B48"]
[WhiteElo "2162"]
[BlackElo "2255"]
[Annotator "TA"]
[PlyCount "82"]
[EventDate "2022.06.18"]
[EventType "swiss"]
[EventCountry "CRO"]
[SourceTitle "playchess.com"]
[Source "ChessBase"]
[SourceQuality "1"]
[TimeControl "5400+30"]

{[%evp 14,82,14,16,37,16,35,0,2,-27,-18,-17,-16,-17,-15,-75,-31,-78,-72,-110,-53,-40,-64,-200,-214,-206,-200,-197,-211,-450,-447,-432,-418,-509,-468,-491,-462,-592,-578,-602,-485,-475,-368,-393,-310,-319,-317,-345,-331,-263,-227,-248,-178,-352,-323,-345,-291,-283,-262,-270,-237,-273,-240,-341,-281,-449,-452,-991,-944,-881,-831]} 1. e4 {[%emt 0:00:02]} c5 {[%emt 0:05:30]} 2. Nf3 {[%emt 0:00:10]} e6 {[%emt 0:00:34]} 3. d4 {[%emt 0:00:13]} cxd4 {[%emt 0:00:08]} 4. Nxd4 {[%emt 0:00:14]} Nc6 {[%emt 0:00:12]} 5. Nc3 {[%emt 0:00:03]} Qc7 {[%emt 0:00:39]} 6. Be3 {[%emt 0:00:25]} a6 {[%emt 0:02:17]} 7. f4 {[%emt 0:02:18] 7.g4 is setting a new trend.} b5 {[%emt 0:01:18]} 8. Nxc6 {[%emt 0:00:51]} dxc6 {[%emt 0:04:59] B48: Sicilian: Taimanov: 5 Nc3 Qc7 6 Be3 a6 without Be2.} 9. Bd3 {[%emt 0:04:00]} Nf6 {[%emt 0:20:28] [#]} 10. Qf3 $146 {[%emt 0:02:48]} ({Predecessor:} 10. O-O Bb7 11. e5 Nd5 12. Nxd5 cxd5 13. Kh1 g6 14. Qg4 h5 15. Qe2 Bg7 16. Bd4 Qe7 17. Qf2 Rc8 18. c3 h4 19. h3 Bh6 20. Be2 {½-½ (20) Baccarin,N (1874)-Gomes,M (1708) Foz do Iguacu 2018}) 10... e5 {[%emt 0:06:56] The position is equal.} 11. fxe5 {[%emt 0:03:59]} Ng4 {[%emt 0:02:10]} 12. Bf4 {[%emt 0:02:27][%cal Oe5e6]} Nxe5 {[%emt 0:01:04]} 13. Qg3 {[%emt 0:00:50]} f6 {[%emt 0:01:32]} 14. O-O {[%emt 0:08:19]} (14. Bxe5 $11 Qxe5 15. Qxe5+ fxe5 16. a4) 14... Be6 {[%emt 0:04:36]} (14... Bd6 {is interesting.} 15. Be2 O-O 16. Rad1 Be6) 15. Kh1 {[%emt 0:05:52]} (15. a4 $15 {deserves consideration.} Bc5+ 16. Kh1) 15... Bd6 $17 {[%emt 0:07:18]} 16. Ne2 {[%emt 0:02:55] [#]} c5 {[%emt 0:00:57] Against Nd4. Black is more active.} (16... g5 $1 $17 {[%cal Rg5f4]} 17. Bxe5 Bxe5) 17. Nc3 {[%emt 0:00:22]} g5 {[%emt 0:02:36]} (17... c4 $5 18. Be2 O-O $11) 18. Bxb5+ {[%emt 0:12:54] This costs White the game.} axb5 $19 {[%emt 0:02:29]} 19. Nxb5 {[%emt 0:00:07]} Qb6 {[%emt 0:02:50]} 20. Nxd6+ {[%emt 0:11:26]} Qxd6 {[%emt 0:00:05]} 21. Bxg5 {[%emt 0:00:33]} (21. Be3 O-O 22. h3) 21... fxg5 {[%emt 0:01:48]} 22. Rad1 {[%emt 0:00:39]} Qc7 {[%emt 0:15:40]} 23. Qxg5 {[%emt 0:13:41] [#] aiming for Qf6.} Ng6 {[%emt 0:03:11]} 24. Rf6 {[%emt 0:16:37]} Qe7 {[%emt 0:00:42]} 25. h4 {[%emt 0:00:41]} Rf8 {[%emt 0:01:45]} 26. e5 {[%emt 0:00:54]} Rxf6 {[%emt 0:10:45]} 27. exf6 {[%emt 0:00:22]} Qf7 {[%emt 0:00:34]} 28. Qxc5 {[%emt 0:01:23] Hoping for Qc6+.} Rc8 {[%emt 0:00:23] Prevents Qc6+.} 29. Qb5+ {[%emt 0:01:12]} Bd7 {[%emt 0:00:57]} ({Not} 29... Kf8 $2 30. Qg5 $19) 30. Qg5 {[%emt 0:01:05]} Nf8 {[%emt 0:00:20]} ({Wrong is} 30... Rxc2 $2 31. Re1+ Kf8 32. h5) 31. c3 {[%emt 0:01:32]} Rc6 {[%emt 0:00:18]} 32. Qe5+ {[%emt 0:02:04]} Ne6 {[%emt 0:00:40]} 33. Qb8+ $2 {[%emt 0:01:51]} (33. b4) 33... Rc8 {[%emt 0:00:04]} 34. Qb7 {[%emt 0:00:34]} Rd8 {[%emt 0:00:31]} 35. Rf1 {[%emt 0:00:33]} Kf8 {[%emt 0:00:55]} 36. Qe4 {[%emt 0:01:15]} Kg8 {[%emt 0:00:18]} 37. Rf3 {[%emt 0:00:56]} Kh8 {[%emt 0:00:11]} 38. Qe5 {[%emt 0:00:36]} (38. Kg1 $142) 38... Rg8 {[%emt 0:00:14] Threatens to win with ...Bc6.} 39. Rd3 {[%emt 0:00:46]} (39. Kg1 {might work better.}) 39... Bc6 {[%emt 0:00:14] Black is clearly winning.} 40. Rd6 {[%emt 0:01:25]} (40. Rd2 $142) 40... Bxg2+ {[%emt 0:00:55]} 41. Kh2 {[%emt 0:00:38]} Nf8 {[%emt 0:00:15] Weighted Error Value: White=0.62/Black=0.25 (precise)} 0-1